bitfinex/quotes_ETHUSD_20240707
["timestamp","ask_amount","ask_price","bid_price","bid_amount"]
[1720316538581,2.56576263,3049.8,3049.6,3.27907]
[1720316538582,2.63137191,3049.8,3049.6,3.27907]
[1720316538873,0.06560928,3049.8,3049.6,3.27907]
[1720316539050,2.56600753,3049.7,3049.6,3.27907]
[1720316539244,2.92797448,3049.7,3049.6,3.27907]
[1720316540250,5.29127448,3049.7,3049.4,3.27926]
[1720316540572,2.63161681,3049.6,3049.0,6.5594]
[1720316540763,2.56600753,3049.5,3049.1,3.27964]
[1720316540966,2.63161681,3049.4,3049.1,3.27964]
[1720316541268,2.56600753,3049.3,3049.1,3.27964]
[1720316541459,2.56600753,3049.2,3049.1,3.27964]
[1720316542052,1.13540156,3049.2,3049.1,3.27964]
[1720316542246,0.06560928,3049.4,3049.2,3.27954]
[1720316542446,2.56638088,3049.3,3049.2,6.55908]
[1720316542762,1.1355695,3049.3,3049.2,6.55908]
[1720316543343,2.56624057,3049.3,3049.2,6.55908]
[1720316543744,1.1355695,3049.3,3049.2,6.55908]
[1720316543954,0.06560928,3049.8,3049.5,3.27916]
[1720316544157,2.56606498,3049.7,3049.5,3.27916]
[1720316544341,2.82923241,3049.6,3049.5,3.27916]
[1720316544956,1.39862213,3049.6,3049.5,3.27916]
[1720316545306,1.39862213,3049.6,3049.0,3.27966]
[1720316545307,3.4987547,3049.6,3049.0,3.27966]
[1720316545459,3.46961317,3049.5,3049.1,3.27962]
[1720316545663,8.8724242,3049.4,3049.1,3.27962]
[1720316545973,2.56638753,3049.3,3049.2,3.27953]
[1720316547277,2.56638753,3049.3,3049.2,6.63089792]
[1720316547908,5.05469681,3049.3,3049.2,3.35135792]
[1720316548370,2.63199681,3049.3,3049.2,3.35135792]
[1720316548808,2.63199662,3049.3,3049.2,3.35135792]
[1720316549187,2.56635812,3049.3,3049.2,3.35135792]
[1720316549905,3.52535812,3049.3,3049.2,3.35135792]
[1720316550407,4.57410321,3049.3,3049.2,3.35135792]
[1720316552101,2.00774509,3049.3,3049.2,3.35135792]
[1720316552422,4.57416464,3049.3,3049.2,3.35135792]
[1720316552624,2.56641955,3049.3,3049.2,3.35135792]
[1720316552783,3.52541955,3049.3,3049.2,3.35135792]
[1720316554482,2.56641955,3049.3,3049.2,3.35135792]
[1720316555390,7.265,3049.4,3049.3,3.27944]
[1720316555591,9.83125931,3049.4,3049.3,3.27944]
[1720316555793,7.265,3049.4,3049.3,3.35136749]
[1720316556149,9.83126393,3049.4,3049.3,3.35136749]
[1720316556289,10.82010737,3049.4,3049.3,3.35136749]
[1720316556485,12.79347854,3049.4,3049.3,0.07192749]
[1720316556891,11.83447854,3049.4,3049.2,3.27951]
[1720316557086,7.29484344,3049.4,3049.3,0.07206271]
[1720316557400,12.79357684,3049.4,3049.2,3.27951]
[1720316557619,2.56634822,3049.3,3049.2,3.27951]
[1720316558632,6.306,3049.4,3049.2,3.27951]
[1720316558791,3.52528805,3049.3,3049.2,6.55905]
[1720316558991,2.56628805,3049.3,3049.2,6.55905]
[1720316559808,2.56628805,3049.3,3049.2,8.84875]
[1720316560442,1.43075496,3049.3,3049.2,8.84875]
[1720316560599,2.56615168,3049.3,3049.2,8.84875]
[1720316562006,6.306,3049.4,3049.3,6.55888]
[1720316562336,8.8720221,3049.4,3049.3,6.55888]
[1720316563413,8.8720221,3049.4,3049.3,9.83832]
[1720316565200,6.306,3049.4,3049.3,9.83832]
[1720316565398,8.8718597,3049.4,3049.3,9.83832]
[1720316565709,8.87183959,3049.4,3049.3,9.83832]
[1720316565905,6.306,3049.4,3049.3,9.83832]
[1720316566803,6.306,3049.4,3049.3,9.91022913]
[1720316570061,0.06560928,3050.1,3050.0,3.27868]
[1720316570233,6.36316683,3050.2,3050.1,3.27858]
[1720316570556,8.92878342,3050.2,3050.1,3.27858]
[1720316570968,8.92878342,3050.2,3050.1,3.35023586]
[1720316571254,8.92878342,3050.2,3050.1,6.62881586]
[1720316571418,8.87161659,3050.2,3050.1,6.62881586]
[1720316571819,8.87145155,3050.2,3050.1,6.62881586]
[1720316574941,6.3011302,3050.2,3050.1,6.62881586]
[1720316575224,8.86655227,3050.2,3050.1,6.62881586]
[1720316575438,7.7314099,3050.2,3050.1,6.62881586]
[1720316575655,8.86655252,3050.2,3050.1,6.62881586]
[1720316578269,6.3011302,3050.2,3050.1,6.62881586]
[1720316578467,8.86651369,3050.2,3050.1,6.62881586]
[1720316578762,6.3011302,3050.2,3050.1,6.62881586]
[1720316580605,3.31,3050.5,3050.4,6.5565]
[1720316580894,5.94090355,3050.5,3050.4,6.5565]
[1720316581072,4.80581984,3050.5,3050.4,6.62756015]
[1720316581293,5.94090593,3050.5,3050.4,6.62756015]
[1720316581796,6.89990593,3050.5,3050.4,6.62756015]
[1720316582791,5.87529665,3050.5,3050.4,6.62756015]
[1720316583082,6.304,3050.7,3050.6,6.55608]
[1720316583292,6.304,3050.7,3050.6,9.83412]
[1720316583293,7.43894347,3050.7,3050.6,9.83412]
[1720316583463,7.43894347,3050.7,3050.6,9.90501262]
[1720316583663,6.304,3050.7,3050.6,9.90501262]
[1720316590515,6.304,3050.7,3050.6,13.18305262]
[1720316590675,6.304,3050.7,3050.6,15.46715262]
[1720316593138,7.43,3052.0,3050.7,2.2841]
[1720316593312,7.43,3052.0,3051.3,0.959]
[1720316593313,3.52,3052.0,3051.3,0.959]
[1720316593508,2.4973,3052.1,3052.0,6.55306]
[1720316593893,3.63174376,3052.1,3052.0,6.62331404]
[1720316594121,2.4973,3052.1,3052.0,6.62331404]
[1720316595003,3.4563,3052.1,3052.0,6.62331404]
[1720316597495,2.4973,3052.1,3052.0,6.62331404]
[1720316597706,6.03,3052.3,3052.0,6.62331404]
[1720316597911,6.989,3052.3,3052.2,3.27632]
[1720316598250,6.989,3052.3,3052.2,6.62262596]
[1720316598942,6.03,3052.3,3052.2,6.62262596]
[1720316601870,6.989,3052.3,3052.2,6.62262596]
[1720316606372,9.4606,3052.3,3052.2,3.34630596]
[1720316606654,10.40666,3052.3,3052.2,3.34630596]
[1720316606861,10.40666,3052.3,3052.2,3.27632]
[1720316607220,10.40666,3052.3,3052.2,3.3460405]
[1720316612560,9.4606,3052.3,3052.2,3.3460405]
[1720316616760,9.4606,3052.3,3052.2,6.6223605]
[1720316617874,6.03,3052.3,3052.2,6.6223605]
[1720316618671,7.16440807,3052.3,3052.2,6.6223605]
[1720316619383,7.16435964,3052.3,3052.2,6.6223605]
[1720316622790,7.16435327,3052.3,3052.2,6.6223605]
[1720316624384,7.9766886,3052.3,3052.2,3.3460405]
[1720316624693,10.3912886,3052.3,3052.2,3.3460405]
[1720316625056,11.82075416,3052.3,3052.2,3.3460405]
[1720316625988,10.68640089,3052.3,3052.2,3.3460405]
[1720316626201,11.82088573,3052.3,3052.2,3.3460405]
[1720316626754,10.39142017,3052.3,3052.2,3.3460405]
[1720316627009,9.57908484,3052.3,3052.2,3.3460405]
[1720316627304,7.16443676,3052.3,3052.2,6.6223605]
[1720316629168,8.59374593,3052.3,3052.2,6.6223605]
[1720316629369,7.16437231,3052.3,3052.2,6.6223605]
[1720316629697,9.43304562,3052.3,3052.2,6.6223605]
[1720316629896,10.86238729,3052.3,3052.2,6.6223605]
[1720316630071,9.43307987,3052.3,3052.2,6.6223605]
[1720316630273,10.86238731,3052.3,3052.2,6.6223605]
[1720316631007,9.43306802,3052.3,3052.2,6.6223605]
[1720316631173,10.86233603,3052.3,3052.2,6.6223605]
[1720316632677,8.2987089,3052.3,3052.2,6.6223605]
[1720316632882,10.86240793,3052.3,3052.2,6.6223605]
[1720316633215,10.86240793,3052.3,3052.2,3.3460405]
[1720316633387,12.04454872,3052.3,3052.2,3.3460405]
[1720316634807,14.02059991,3052.3,3052.2,3.3460405]
[1720316634981,12.04454872,3052.3,3052.2,3.3460405]
[1720316635710,11.82140793,3052.3,3052.2,3.3460405]
[1720316635914,11.82150537,3052.3,3052.2,3.3460405]
[1720316636118,11.8215026,3052.3,3052.2,3.3460405]
[1720316637224,13.79746347,3052.3,3052.2,3.3460405]
[1720316638483,12.83846347,3052.3,3052.2,3.3460405]
[1720316638720,13.79746347,3052.3,3052.2,3.3460405]
[1720316639383,13.79723789,3052.3,3052.2,3.3460405]
[1720316639727,9.2577089,3052.3,3052.2,3.3460405]
[1720316640021,11.528541,3052.3,3052.2,3.3460405]
[1720316641700,6.989,3052.3,3052.2,3.27632]
[1720316642016,11.52818898,3052.3,3052.2,3.34435526]
[1720316645053,8.418363,3052.3,3052.2,3.34435526]
[1720316645350,11.52799446,3052.3,3052.2,3.34435526]
[1720316647537,11.52799446,3052.3,3052.2,6.62067526]
[1720316647538,10.56899446,3052.3,3052.2,6.62067526]
[1720316648221,7.16441508,3052.3,3052.2,6.62067526]
[1720316648419,10.56895916,3052.3,3052.2,6.62067526]
[1720316648655,6.03,3052.3,3052.2,6.62067526]
[1720316648819,10.56894445,3052.3,3052.2,6.62067526]
[1720316649849,10.56894445,3052.3,3052.2,6.78267526]
[1720316651633,11.52791828,3052.3,3052.2,6.78267526]
[1720316653031,10.56891828,3052.3,3052.2,6.78267526]
[1720316654056,11.52791828,3052.3,3052.2,6.78267526]
[1720316654858,6.989,3052.3,3052.2,6.78267526]
[1720316655163,11.52809946,3052.3,3052.2,6.78267526]
[1720316658280,10.39341104,3052.3,3052.2,6.78267526]
[1720316658587,6.989,3052.3,3052.2,6.78267526]
[1720316658883,11.52776144,3052.3,3052.2,6.78267526]
[1720316659391,11.52776144,3052.3,3052.2,3.50635526]
[1720316659759,11.5277642,3052.3,3052.2,6.78267526]
[1720316661368,6.989,3052.3,3052.2,6.78267526]
[1720316661566,11.52778533,3052.3,3052.2,6.78267526]
[1720316663785,11.52778533,3052.3,3052.2,3.50635526]
[1720316664132,10.56878533,3052.3,3052.2,9.18757526]
[1720316664457,8.59375508,3052.3,3052.2,9.18757526]
[1720316664658,6.03,3052.3,3052.2,9.18757526]
[1720316664858,8.59350417,3052.3,3052.2,9.18757526]
[1720316665083,10.56839084,3052.3,3052.2,9.18757526]
[1720316665265,8.59350417,3052.3,3052.2,9.18757526]
[1720316666004,8.59350417,3052.3,3052.2,12.46389526]
[1720316667961,7.45920811,3052.3,3052.2,12.46389526]
[1720316668261,6.03,3052.3,3052.2,12.46389526]
[1720316668460,8.59351881,3052.3,3052.2,12.46389526]
[1720316668878,8.5935011,3052.3,3052.2,12.46389526]
[1720316669368,7.16429252,3052.3,3052.2,12.46389526]
[1720316669604,8.59350092,3052.3,3052.2,12.46389526]
[1720316671215,8.59350092,3052.3,3052.2,6.78267526]
[1720316671377,8.41823416,3052.3,3052.2,6.78267526]
[1720316671563,11.52778212,3052.3,3052.2,6.78267526]
[1720316671775,11.52778212,3052.3,3052.2,3.50635526]
[1720316671981,12.90786033,3052.3,3052.2,3.50635526]
[1720316674113,15.18086033,3052.3,3052.2,0.23003526]
[1720316674328,15.18086033,3052.3,3052.2,0.162]
[1720316674329,15.73086033,3052.3,3052.2,0.162]
[1720316674535,11.19207821,3052.3,3052.2,0.22979507]
[1720316674829,18.47843865,3052.3,3052.2,0.162]
[1720316675317,13.31636044,3052.3,3052.2,0.162]
[1720316675526,11.52773147,3052.3,3052.2,0.162]
[1720316675730,11.52773147,3052.3,3052.2,0.22993462]
[1720316677715,6.989,3052.3,3052.2,0.22993462]
[1720316678033,11.52764921,3052.3,3052.2,0.22993462]
[1720316678184,11.52772356,3052.3,3052.2,0.22993462]
[1720316680989,6.989,3052.3,3052.2,0.22993462]
[1720316681217,11.52784649,3052.3,3052.2,0.22993462]
[1720316683487,11.52784649,3052.3,3052.2,3.50625462]
[1720316684528,11.52781541,3052.3,3052.2,3.50625462]
[1720316687743,11.52784742,3052.3,3052.2,3.50625462]
[1720316688118,11.5278468,3052.3,3052.2,3.50625462]
[1720316689144,9.50355492,3052.3,3052.2,3.50625462]
[1720316689324,12.90877722,3052.3,3052.2,3.50625462]
[1720316690545,12.96590788,3052.3,3052.2,3.50625462]
[1720316690948,11.83143764,3052.3,3052.2,0.22993462]
[1720316691247,15.98835507,3052.3,3052.2,0.22993462]
[1720316691466,18.73603743,3052.3,3052.2,0.22993462]
[1720316691626,18.73603743,3052.3,3052.2,0.162]
[1720316691627,22.60743752,3052.3,3052.2,0.162]
[1720316691825,25.44811922,3052.3,3052.2,0.162]
[1720316692225,25.44837664,3052.3,3052.2,0.162]
[1720316693220,22.60769494,3052.3,3052.2,0.162]
[1720316694653,22.6080193,3052.3,3052.2,0.162]
[1720316695215,25.8842293,3052.3,3052.2,0.162]
[1720316696318,28.2860096,3052.3,3052.2,0.162]
[1720316696517,25.00976741,3052.3,3052.2,0.162]
[1720316697252,21.73355741,3052.3,3052.2,0.162]
[1720316697836,19.33167378,3052.3,3052.2,0.162]
[1720316698229,19.33177361,3052.3,3052.2,0.162]
[1720316699670,21.73322707,3052.3,3052.2,0.162]
[1720316700456,22.60798361,3052.3,3052.2,0.162]
[1720316700674,25.00943707,3052.3,3052.2,0.162]
[1720316700879,28.28556542,3052.3,3052.2,0.162]
[1720316701638,25.88424845,3052.3,3052.2,0.162]
[1720316702476,28.28531822,3052.3,3052.2,0.162]
[1720316702774,19.33182845,3052.3,3052.2,0.162]
[1720316703008,16.33182845,3052.3,3052.2,0.162]
[1720316703139,19.33182845,3052.3,3052.2,0.162]
[1720316703340,19.33161939,3052.3,3052.2,0.162]
[1720316703679,14.95153471,3052.3,3052.2,0.162]
[1720316703838,10.97003471,3052.3,3052.2,0.162]
[1720316704037,11.92903471,3052.3,3052.2,0.162]
[1720316705137,12.47903471,3052.3,3052.2,0.162]
[1720316706143,12.47903471,3052.3,3052.2,0.23033279]
[1720316706370,13.72693818,3052.3,3052.2,0.162]
[1720316706539,12.79405111,3052.3,3052.2,0.162]
[1720316706738,16.19806522,3052.3,3052.2,0.162]
[1720316706960,15.06337947,3052.3,3052.2,0.162]
[1720316707148,16.19806583,3052.3,3052.2,0.162]
[1720316707949,13.0891114,3052.3,3052.2,0.162]
[1720316708159,16.19743105,3052.3,3052.2,0.162]
[1720316709474,15.23843105,3052.3,3052.2,0.162]
[1720316709777,9.18690658,3052.3,3052.2,0.162]
[1720316709983,13.72468317,3052.3,3051.7,3.27685]
[1720316710287,0.959,3051.8,3051.7,3.27685]
[1720316710790,2.56430991,3051.8,3051.7,6.55371]
[1720316710953,3.52330991,3051.8,3051.7,9.03121]
[1720316711538,2.56430991,3051.8,3051.7,9.03121]
[1720316711790,3.52330991,3051.8,3051.7,9.03121]
[1720316713091,0.959,3051.8,3051.7,9.03121]
[1720316713391,2.09356142,3051.8,3051.7,9.03121]
[1720316713552,3.5231088,3051.8,3051.7,9.03121]
[1720316714799,2.5641088,3051.8,3051.7,9.03121]
[1720316716378,0.959,3051.9,3051.7,9.03121]
[1720316716379,0.959,3051.9,3051.8,6.5535]
[1720316716557,2.388474,3051.9,3051.8,6.62173263]
[1720316716753,0.959,3051.9,3051.8,6.62173263]
[1720316717062,2.38846231,3051.9,3051.8,9.09923263]
[1720316717268,3.52295621,3051.9,3051.8,9.09923263]
[1720316718001,2.56395621,3051.9,3051.8,9.09923263]
[1720316718210,2.56395621,3051.9,3051.8,12.37598263]
[1720316718581,7.43,3052.2,3052.1,6.55286]
[1720316718789,9.99365625,3052.2,3052.1,9.09845604]
[1720316719569,7.43,3052.2,3052.1,9.09845604]
[1720316719914,12.08700546,3052.2,3052.1,9.09845604]
[1720316722201,10.95264799,3052.2,3052.1,9.09845604]
[1720316722998,9.9936486,3052.2,3052.1,9.09845604]
[1720316723309,10.9526486,3052.2,3052.1,9.09845604]
[1720316724405,3.5226486,3052.2,3052.1,9.09845604]
[1720316726280,2.09335162,3052.2,3052.1,9.09845604]
[1720316726469,3.52263466,3052.2,3052.1,9.09845604]
[1720316726673,3.52265329,3052.2,3052.1,9.09845604]
[1720316727696,3.52266902,3052.2,3052.1,9.09845604]
[1720316729020,3.52264404,3052.2,3052.1,9.09845604]
[1720316729625,0.959,3052.2,3052.1,9.09845604]
[1720316729826,3.52266675,3052.2,3052.1,9.09845604]
[1720316730515,3.52266675,3052.2,3052.1,6.62095604]
[1720316731223,3.52266675,3052.2,3052.1,8.93405604]
[1720316731521,1.13436582,3052.2,3052.1,8.93405604]
[1720316731723,2.56365058,3052.2,3052.1,8.93405604]
[1720316731882,1.13436582,3052.2,3052.1,8.93405604]
[1720316732521,2.56366154,3052.2,3052.1,8.93405604]
[1720316732724,1.13436582,3052.2,3052.1,12.21048604]
[1720316733021,0.959,3052.9,3052.5,3.27594]
[1720316733232,0.959,3052.9,3052.8,6.55136]
[1720316733407,3.52224537,3052.9,3052.8,6.55136]
[1720316733617,3.52224537,3052.9,3052.8,6.61715648]
[1720316735129,3.58785465,3052.9,3052.8,6.61715648]
[1720316735993,1.02460928,3052.9,3052.8,6.61715648]
[1720316736221,3.52224052,3052.9,3052.8,6.61715648]
[1720316736588,3.47219574,3052.9,3052.8,6.61715648]
[1720316737283,2.04315741,3052.9,3052.8,6.61715648]
[1720316737484,3.53782197,3052.9,3052.8,6.61715648]
[1720316737681,3.47221269,3052.9,3052.8,6.61715648]
[1720316738124,2.56321269,3052.9,3052.8,6.61715648]
[1720316738318,2.0931515,3052.9,3052.8,8.93025648]
[1720316739291,0.959,3052.9,3052.8,8.93025648]
[1720316739626,2.09312424,3052.9,3052.8,8.93025648]
[1720316739986,2.09312424,3052.9,3052.8,6.61715648]
[1720316742640,6.03,3053.0,3052.9,6.55114]
[1720316742928,7.16408591,3053.0,3052.9,6.55114]
[1720316743128,7.16408591,3053.0,3052.9,6.61667215]
[1720316745951,6.03,3053.0,3052.9,6.61667215]
[1720316746100,7.16412392,3053.0,3052.9,6.61667215]
[1720316746436,7.16411928,3053.0,3052.9,6.61667215]
[1720316747293,7.16412446,3053.0,3052.9,6.61667215]
[1720316747497,7.11412446,3053.0,3052.9,6.61667215]
[1720316749234,5.98,3053.0,3052.9,6.61667215]
[1720316749442,7.11412533,3053.0,3052.9,6.61667215]
[1720316751319,7.06412533,3053.0,3052.9,6.61667215]
[1720316752598,5.93,3053.0,3052.9,6.61667215]
[1720316752804,7.06403057,3053.0,3052.9,6.61667215]
[1720316753451,7.06403057,3053.0,3052.9,9.07477215]
[1720316755824,7.06403781,3053.0,3052.9,9.07477215]
[1720316756142,5.93,3053.0,3052.9,9.07477215]
[1720316756437,7.06405223,3053.0,3052.9,9.07477215]
[1720316757266,7.06404099,3053.0,3052.9,9.07477215]
[1720316758559,7.06404099,3053.0,3052.9,12.35034215]
[1720316758846,1.01607442,3053.7,3053.6,3.27482]
[1720316759016,1.01607442,3053.7,3053.6,3.3400756]
[1720316759017,0.959,3053.7,3053.6,3.3400756]
[1720316759217,3.5872684,3053.7,3053.6,3.3400756]
[1720316759417,7.27261524,3053.7,3053.6,0.0652556]
[1720316759743,7.27261524,3053.7,3053.4,3.27499]
[1720316760042,0.959,3053.5,3053.4,3.27496]
[1720316760355,3.5872684,3053.5,3053.4,3.27496]
[1720316761515,1.02460928,3053.5,3053.4,3.27496]
[1720316761707,3.52179373,3053.5,3053.4,3.34015646]
[1720316761912,3.5217938,3053.5,3053.4,3.34015646]
[1720316762312,2.5627938,3053.5,3053.4,6.61518646]
[1720316762747,2.09298003,3053.5,3053.4,6.61518646]
[1720316762948,1.13398003,3053.5,3053.4,6.61518646]
[1720316764435,6.006,3053.8,3053.7,6.54942]
[1720316764637,6.006,3053.8,3053.7,6.61444799]
[1720316764953,7.13980388,3053.8,3053.7,6.61444799]
[1720316765153,7.13979681,3053.8,3053.7,6.61444799]
[1720316766065,7.13979086,3053.8,3053.7,6.61444799]
[1720316767690,6.006,3053.8,3053.7,9.88915799]
[1720316768233,7.43,3054.2,3054.1,6.54856]
[1720316768534,0.05708858,3055.2,3054.8,3.27346]
[1720316768734,0.959,3055.0,3054.8,3.27346]
[1720316768975,2.56169085,3054.9,3054.8,3.27346]
[1720316769348,1.13348781,3054.9,3054.8,3.27346]
[1720316770884,1.19909709,3054.9,3054.8,3.27346]
[1720316771172,0.06560928,3054.9,3054.8,3.27346]
[1720316771549,1.19907403,3054.9,3054.8,3.27346]
[1720316772640,0.06560928,3054.9,3054.8,3.27346]
[1720316774274,0.959,3055.0,3054.8,3.27346]
[1720316776050,0.06560928,3055.2,3054.8,3.27346]
[1720316776379,0.959,3055.0,3054.8,3.27346]
[1720316776585,1.02460928,3055.0,3054.8,3.27346]
[1720316776895,0.959,3055.0,3054.9,0.06426083]
[1720316778081,2.15808682,3055.0,3054.9,0.06426083]
[1720316778311,1.02460928,3055.0,3054.9,0.06426083]
[1720316778479,0.959,3055.0,3054.9,0.06426083]
[1720316779007,0.909,3055.0,3054.9,0.06426083]
[1720316779557,2.63324213,3055.3,3055.0,3.27322]
[1720316779861,0.959,3055.1,3055.0,3.27322]
[1720316780268,2.69885141,3055.3,3055.0,3.27322]
[1720316780504,0.959,3055.1,3055.0,3.27322]
[1720316780716,2.69885141,3055.3,3054.5,0.06546683]
[1720316780717,0.34254213,3055.3,3055.1,3.27314]
[1720316780898,0.959,3055.3,3055.2,3.2731]
[1720316781063,0.959,3055.3,3054.7,3.27359]
[1720316781064,2.2907,3055.2,3054.7,3.27359]
[1720316781264,0.959,3055.0,3054.9,3.27342]
[1720316785001,0.959,3055.0,3054.7,3.27364]
[1720316785173,0.959,3055.0,3054.7,3.27354]
[1720316785174,0.959,3054.8,3054.7,3.27354]
[1720316786193,0.959,3054.8,3054.6,3.27374]
[1720316786194,0.06560928,3055.0,3054.8,3.27349]
[1720316786384,0.959,3054.9,3054.8,3.27349]
[1720316787378,2.09246348,3054.9,3054.8,3.27349]
[1720316787574,2.09246659,3054.9,3054.8,3.27349]
[1720316789139,0.959,3054.9,3054.8,3.27349]
[1720316789295,0.959,3054.9,3054.2,3.27409]
[1720316789296,3.8761,3054.9,3054.2,3.27409]
[1720316789499,0.61560928,3054.8,3054.3,3.27406]
[1720316789816,0.959,3054.4,3054.3,3.27406]
[1720316790197,0.959,3054.4,3054.1,3.27421]
[1720316790400,0.959,3054.2,3054.1,3.27421]
[1720316791825,0.959,3054.2,3054.1,3.33852458]
[1720316792697,1.13347193,3054.4,3054.2,3.27411]
[1720316792885,0.959,3054.3,3054.2,3.27411]
[1720316793087,2.09247193,3054.3,3054.2,3.27411]
[1720316793736,0.959,3054.3,3054.2,3.27411]
[1720316793959,0.34258978,3054.5,3054.4,3.27396]
[1720316794241,1.13358661,3054.6,3054.5,3.27385]
[1720316794448,6.06308352,3054.7,3054.6,3.27375]
[1720316794615,7.13951397,3054.7,3054.6,3.27375]
[1720316796816,7.13951397,3054.7,3054.6,8.9409]
[1720316797112,0.05707819,3055.2,3055.0,3.27331]
[1720316797338,2.09241915,3055.1,3055.0,3.27331]
[1720316797650,2.09243819,3055.1,3055.0,3.27331]
[1720316798133,2.09243926,3055.1,3055.0,3.27331]
[1720316798935,2.0924356,3055.1,3055.0,3.27331]
[1720316799746,2.0924356,3055.1,3054.5,3.27378]
[1720316799950,0.959,3054.6,3054.4,3.27389]
[1720316800115,1.1334356,3054.5,3054.4,6.54785]
[1720316800508,0.959,3054.8,3054.7,3.27364]
[1720316800719,2.0924356,3054.8,3054.7,3.27364]
[1720316800954,0.959,3054.8,3054.7,3.27364]
[1720316801304,2.09250439,3054.8,3054.7,3.27364]
[1720316804041,2.04250439,3054.8,3054.7,3.27364]
[1720316804402,2.0424636,3054.8,3054.7,3.27364]
[1720316806547,2.0424636,3054.8,3054.6,3.27374]
[1720316806843,1.1334636,3054.7,3054.6,3.27374]
[1720316807648,0.909,3054.8,3054.7,3.27364]
[1720316807810,2.0924904,3054.8,3054.7,3.27364]
[1720316808148,3.52068801,3054.8,3054.7,3.27364]
[1720316809549,2.56168801,3054.8,3054.7,3.27364]
[1720316809710,3.52068801,3054.8,3054.7,3.27364]
[1720316810952,3.52064466,3054.8,3054.7,3.27364]
[1720316813235,3.52064466,3054.8,3054.7,6.54728]
[1720316813757,2.56164466,3054.8,3054.7,6.54728]
[1720316814052,3.52064466,3054.8,3054.7,6.54728]
[1720316814254,3.52059182,3054.8,3054.7,6.54728]
[1720316814826,3.52059182,3054.8,3054.7,6.49728]
[1720316816041,5.49684258,3054.8,3054.7,3.22364]
[1720316816450,3.52059182,3054.8,3054.7,3.22364]
[1720316817253,3.52059182,3054.8,3054.7,6.49728]
[1720316817453,2.38715049,3054.8,3054.7,6.49728]
[1720316817657,3.52060326,3054.8,3054.7,6.49728]
[1720316817965,3.52059583,3054.8,3054.7,6.49728]
[1720316818962,3.52059312,3054.8,3054.7,6.49728]
[1720316819171,3.47059312,3054.8,3054.7,6.49728]
[1720316820466,3.47059312,3054.8,3054.7,3.22364]
[1720316820676,2.33715473,3054.8,3054.7,3.22364]
[1720316820830,3.47061086,3054.8,3054.7,3.22364]
[1720316821546,3.52061086,3054.8,3054.7,6.56135212]
[1720316821942,2.56161086,3054.8,3054.7,9.01705212]
[1720316823291,0.959,3055.1,3055.0,3.27332]
[1720316823573,3.52043789,3055.1,3055.0,3.33732429]
[1720316823870,5.49672713,3055.1,3055.0,3.33732429]
[1720316824568,5.49672713,3055.1,3055.0,6.61064429]
[1720316825974,7.90782713,3055.1,3055.0,0.06400429]
[1720316826151,9.20620766,3055.1,3055.0,0.06400429]
[1720316826355,9.20620766,3055.1,3053.8,2.4557]
[1720316826356,5.66172806,3055.1,3053.8,2.4557]
[1720316826547,5.66172806,3055.1,3054.3,3.27403]
[1720316826548,2.4111,3054.9,3054.3,3.27403]
[1720316826750,0.959,3054.4,3054.3,3.27403]
[1720316826952,3.5211507,3054.4,3054.3,3.27403]
[1720316827375,5.56189521,3054.4,3054.3,3.27403]
[1720316828076,5.5617266,3054.4,3054.3,3.27403]
[1720316829683,3.58680977,3054.4,3054.3,3.27403]
[1720316829978,3.52120049,3054.4,3054.3,3.27403]
[1720316830283,5.49615089,3054.4,3054.3,3.27403]
[1720316830484,3.52120049,3054.4,3054.3,3.27403]
[1720316832888,0.959,3054.4,3054.3,3.27403]
[1720316833086,2.09265414,3054.4,3054.3,3.27403]
[1720316833251,2.56205835,3054.4,3054.3,9.0404]
[1720316833757,1.42840421,3054.4,3054.3,9.0404]
[1720316833958,6.006,3054.6,3054.3,5.76633]
[1720316834290,6.006,3054.6,3054.5,6.5477]
[1720316834459,8.56762279,3054.6,3054.5,6.5477]
[1720316836281,8.56767488,3054.6,3054.5,6.5477]
[1720316836787,8.56767488,3054.6,3054.5,6.60561059]
[1720316836788,8.56767522,3054.6,3054.5,6.60561059]
[1720316837595,8.56771445,3054.6,3054.5,6.60561059]
[1720316839377,8.56771124,3054.6,3054.5,6.60561059]
[1720316839821,2.56171124,3054.6,3054.5,6.60561059]
[1720316840117,2.56171124,3054.6,3054.5,6.67108327]
[1720316840288,0.959,3055.1,3055.0,3.27325]
[1720316840498,3.52033132,3055.1,3055.0,3.33104906]
[1720316840714,5.49612086,3055.1,3055.0,3.33104906]
[1720316841014,5.49611644,3055.1,3055.0,3.33104906]
[1720316841382,3.52033132,3055.1,3055.0,3.33104906]
[1720316842535,2.56133132,3055.1,3055.0,6.60436906]
[1720316842838,3.5203253,3055.1,3055.0,6.60436906]
[1720316845897,0.959,3055.1,3055.0,6.60436906]
[1720316846140,13.436,3055.3,3055.2,3.2731]
[1720316846336,6.965,3055.3,3055.2,3.2731]
[1720316846527,9.52632731,3055.3,3055.2,3.33079829]
[1720316846722,11.50172636,3055.3,3055.2,3.33079829]
[1720316847114,9.52632731,3055.3,3055.2,3.33079829]
[1720316847727,8.56732731,3055.3,3055.2,3.33079829]
[1720316847925,9.52632731,3055.3,3055.2,3.33079829]
[1720316848129,8.56732731,3055.3,3055.2,3.33079829]
[1720316848440,9.52632731,3055.3,3055.2,3.33079829]
[1720316849211,9.52628426,3055.3,3055.2,3.33079829]
[1720316849602,9.52628426,3055.3,3055.2,6.60389829]
[1720316849603,8.56728426,3055.3,3055.2,6.60389829]
[1720316850103,9.52628426,3055.3,3055.2,6.60389829]
[1720316851942,11.78168426,3055.3,3055.2,3.33079829]
[1720316852455,9.2204,3055.3,3055.2,3.33079829]
[1720316852603,11.78174623,3055.3,3055.2,3.33079829]
[1720316852807,11.78175498,3055.3,3055.2,3.33079829]
[1720316853555,14.52754048,3055.3,3054.2,3.2741]
[1720316853847,14.52754048,3055.3,3053.3,5.59302]
[1720316853848,0.959,3054.3,3053.3,5.59302]
[1720316854043,2.2554,3054.8,3053.3,5.59302]
[1720316854044,7.49560928,3054.7,3054.1,3.2742]
[1720316854208,0.959,3054.2,3054.1,3.2742]
[1720316854606,1.42843997,3054.2,3054.1,6.61396527]
[1720316854903,0.959,3054.2,3053.1,3.60849175]
[1720316855247,0.959,3054.1,3054.0,3.27439]
[1720316855775,0.06560928,3054.6,3054.2,3.27417]
[1720316855950,2.56193566,3054.5,3054.3,3.27397]